fUST/lending_fUST_20250615
["ID","MTS","AMOUNT","RATE_DAILY","PERIOD"]
[365892093,1749976237984,-500.0,0.00020509,2]
[365892094,1749976237994,-500.0,0.00020509,2]
[365892095,1749976238005,-500.0,0.00020509,2]
[365892096,1749976238014,-1409.85168059,0.00020509,2]
[365892097,1749976238023,-500.0,0.00020509,2]
[365892098,1749976238033,-352.05380976,0.00020509,2]
[365892099,1749976238043,-1409.85168059,0.00020509,2]
[365892100,1749976238052,-409.05434717,0.00020509,2]
[365892101,1749976238062,-500.0,0.00020509,2]
[365892102,1749976238071,-583.14917533,0.00020509,2]
[365892103,1749976238082,-500.0,0.00020509,2]
[365892104,1749976238091,-1409.85168059,0.00020509,2]
[365892105,1749976238101,-485.37169811,0.00020509,2]
[365892106,1749976238110,-1409.85168059,0.00020509,2]
[365892107,1749976238120,-500.0,0.00020509,2]
[365892108,1749976238130,-1409.85168059,0.00020509,2]
[365892109,1749976238139,-500.0,0.00020509,2]
[365892110,1749976238149,-500.0,0.00020509,2]
[365892111,1749976238159,-1409.85168059,0.00020509,2]
[365892112,1749976238169,-220.07231275,0.00020509,2]
[365892113,1749976238178,-1409.85168059,0.00020509,2]
[365892114,1749976238188,-1409.85168059,0.00020509,2]
[365892115,1749976238198,-500.0,0.00020509,2]
[365892116,1749976238208,-500.0,0.00020509,2]
[365892117,1749976238218,-1409.85168059,0.00020509,2]
[365892118,1749976238229,-1409.85168059,0.00020509,2]
[365892119,1749976238238,-500.0,0.00020509,2]
[365892120,1749976238248,-1409.85168059,0.00020509,2]
[365892121,1749976238258,-1409.85168059,0.00020509,2]
[365892122,1749976238268,-1409.85168059,0.00020509,2]
[365892123,1749976238277,-1409.85168059,0.00020509,2]
[365892124,1749976238287,-1409.85168059,0.00020509,2]
[365892125,1749976238297,-1409.85168059,0.00020509,2]
[365892126,1749976238307,-1409.85168059,0.00020509,2]
[365892127,1749976238318,-1409.85168059,0.00020509,2]
[365892128,1749976238327,-1409.85168059,0.00020509,2]
[365892129,1749976238337,-1409.85168059,0.00020509,2]
[365892130,1749976238346,-1409.85168059,0.00020509,2]
[365892131,1749976238357,-1409.85168059,0.00020509,2]
[365892132,1749976238366,-1409.85168059,0.00020509,2]
[365892133,1749976238376,-1409.85168059,0.00020509,2]
[365892134,1749976238389,-1409.85168059,0.00020509,2]
[365892135,1749976238399,-1409.85168059,0.00020509,2]
[365892136,1749976238408,-1409.85168059,0.00020509,2]
[365892137,1749976238417,-1409.85168059,0.00020509,2]
[365892138,1749976238427,-1409.85168059,0.00020509,2]
[365892139,1749976238437,-1409.85168059,0.00020509,2]
[365892140,1749976238447,-1409.85168059,0.00020509,2]
[365892141,1749976238457,-1409.85168059,0.00020509,2]
[365892142,1749976238467,-1409.85168059,0.00020509,2]
[365892143,1749976238477,-1409.85168059,0.00020509,2]
[365892144,1749976238487,-1409.85168059,0.00020509,2]
[365892145,1749976238497,-1409.85168059,0.00020509,2]
[365892146,1749976238507,-1409.85168059,0.00020509,2]
[365892147,1749976238517,-1409.85168059,0.00020509,2]
[365892148,1749976238527,-1409.85168059,0.00020509,2]
[365892149,1749976238537,-1409.85168059,0.00020509,2]
[365892150,1749976238547,-1409.85168059,0.00020509,2]
[365892151,1749976238556,-1409.85168059,0.00020509,2]
[365892152,1749976238566,-1409.85168059,0.00020509,2]
[365892153,1749976238576,-1409.85168059,0.00020509,2]
[365892154,1749976238585,-1409.85168059,0.00020509,2]
[365892155,1749976238595,-1409.85168059,0.00020509,2]
[365892156,1749976238605,-1409.85168059,0.00020509,2]
[365892157,1749976238614,-1409.85168059,0.00020509,2]
[365892158,1749976238624,-1409.85168059,0.00020509,2]
[365892159,1749976238633,-1409.85168059,0.00020509,2]
[365892160,1749976238643,-1409.85168059,0.00020509,2]
[365892161,1749976238652,-1409.85168059,0.00020509,2]
[365892162,1749976238662,-1409.85168059,0.00020509,2]
[365892163,1749976238671,-1409.85168059,0.00020509,2]
[365892164,1749976238681,-1409.85168059,0.00020509,2]
[365892165,1749976238691,-1409.85168059,0.00020509,2]
[365892166,1749976238701,-1409.85168059,0.00020509,2]
[365892167,1749976238711,-1409.85168059,0.00020509,2]
[365892168,1749976238720,-1409.85168059,0.00020509,2]
[365892169,1749976238730,-1409.85168059,0.00020509,2]
[365892170,1749976238739,-1409.85168059,0.00020509,2]
[365892171,1749976238750,-1409.85168059,0.00020509,2]
[365892172,1749976238760,-1409.85168059,0.00020509,2]
[365892173,1749976238769,-1409.85168059,0.00020509,2]
[365892174,1749976238779,-406.0009654,0.00020509,2]
[365892175,1749976238788,-300.0,0.00020509,2]
[365892176,1749976238798,-300.0,0.00020509,2]
[365892177,1749976238807,-300.0,0.00020509,2]
[365892178,1749976238816,-50000.0,0.0002051,2]
[365892179,1749976238827,-300.0,0.00020511,2]
[365892180,1749976238836,-178.216,0.00020538,2]
[365892181,1749976238845,-433.044,0.00020538,2]
[365892182,1749976238855,-500.0,0.00020573,2]
[365892183,1749976238867,-500.0,0.00020573,2]
[365892184,1749976238877,-500.0,0.00020573,2]
[365892185,1749976238887,-500.0,0.00020573,2]
[365892186,1749976238897,-501.13706826,0.00020573,2]
[365892187,1749976238906,-501.64347964,0.00020573,2]
[365892188,1749976238916,-501.64658608,0.00020573,2]
[365892189,1749976238925,-500.0,0.00020573,2]
[365892190,1749976238935,-546.44,0.000206,2]
[365892191,1749976238945,-1424.41,0.000206,2]
[365892192,1749976238956,-1201.12475488,0.00021036,2]
[365892193,1749976238966,-189.94184358,0.00021058,2]
[365892194,1749976238975,-1064.2061482,0.00021121,2]
[365892195,1749976238986,-1000.0,0.00021121,2]
[365892196,1749976238997,-2247.24,0.00021152,2]
[365892197,1749976239007,-607.53197589,0.000213,2]
[365892198,1749976239016,-168.0,0.00021359,2]
[365892199,1749976239026,-500.0,0.00021569,2]
[365892200,1749976239036,-500.0,0.00021569,2]
[365892201,1749976239046,-1201.12475488,0.00021662,2]
[365892202,1749976239057,-1500.0,0.00021668,2]
[365892203,1749976239066,-189.94184358,0.00021706,2]
[365892204,1749976239077,-168.0,0.00021768,2]
[365892205,1749976239086,-2775.87413851,0.00021817,2]
[365892206,1749976239096,-160.0,0.00021898,2]
[365892207,1749976239107,-496.32736655,0.000219,2]
[365892208,1749976239116,-500.0,0.000219,2]
[365892209,1749976239126,-619.23,0.00021907,3]
[365892210,1749976239136,-263.65779169,0.00021917,4]
[365892211,1749976239147,-342.97516346,0.00021917,4]
[365892212,1749976239157,-465.54076188,0.00021917,2]
[365892213,1749976239166,-501.51307386,0.00021917,4]
[365892214,1749976239175,-460.0,0.00021917,4]
[365892215,1749976239185,-222.27280839,0.00021917,4]
[365892216,1749976239195,-528.37,0.00021917,4]
[365892217,1749976239204,-230.0,0.00021917,4]
[365892218,1749976239213,-460.0,0.00021917,4]
[365892219,1749976239223,-180.81256741,0.00021917,4]
[365892220,1749976239233,-460.0,0.00021917,4]
[365892221,1749976239243,-613.83,0.00021917,4]
[365892222,1749976239253,-467.82904102,0.00021917,4]
[365892223,1749976239263,-460.0,0.00021917,4]
[365892224,1749976239273,-460.0,0.00021917,4]
[365892225,1749976239282,-327.71417768,0.00021917,4]
[365892226,1749976239292,-586.35468164,0.00021917,4]
[365892227,1749976239302,-474.07,0.00021917,4]
[365892228,1749976239314,-460.0,0.00021917,4]
[365892229,1749976239323,-207.2588249,0.00021917,4]
[365892230,1749976239332,-460.0,0.00021917,4]
[365892231,1749976239342,-479.87,0.00021917,2]
[365892232,1749976239351,-460.0,0.00021917,4]
[365892233,1749976239362,-460.0,0.00021917,4]
[365892234,1749976239371,-3296.49,0.00021917,4]
[365892235,1749976239380,-566.14952116,0.00021917,4]
[365892236,1749976239547,-460.0,0.00021917,4]
[365892237,1749976239557,-537.78,0.00021917,4]
[365892238,1749976239567,-460.0,0.00021917,4]
[365892239,1749976239578,-411.95115847,0.00021917,4]
[365892240,1749976239588,-703.97,0.00021917,4]
[365892241,1749976239599,-460.0,0.00021917,4]
[365892242,1749976239609,-460.0,0.00021917,4]
[365892243,1749976239619,-1995.69,0.00021917,4]
[365892244,1749976239628,-2740.44,0.00021917,4]
[365892245,1749976239638,-1301.91,0.00021917,4]
[365892246,1749976239647,-571.14,0.00021917,4]
[365892247,1749976239656,-460.0,0.00021917,4]
[365892248,1749976239666,-460.0,0.00021917,4]
[365892249,1749976239675,-460.0,0.00021917,4]
[365892250,1749976239685,-2652.24,0.00021917,4]
[365892251,1749976239695,-332.14254253,0.00021917,4]
[365892252,1749976239704,-460.0,0.00021917,4]
[365892253,1749976239713,-460.0,0.00021917,4]
[365892254,1749976239723,-303.5303612,0.00021917,4]
[365892255,1749976239732,-1119.44,0.00021917,4]
[365892256,1749976239741,-551.92,0.00021917,4]
[365892257,1749976239750,-1273.67,0.00021917,4]
[365892258,1749976239759,-460.0,0.00021917,4]
[365892260,1749976239768,-379.84888959,0.00021917,4]
[365892262,1749976239777,-1087.65,0.00021917,4]
[365892264,1749976239786,-508.07987483,0.00021917,4]
[365892266,1749976239795,-460.0,0.00021917,4]
[365892268,1749976239805,-460.0,0.00021917,4]
[365892270,1749976239814,-759.2,0.00021917,4]
[365892272,1749976239824,-176.46763862,0.00021917,4]
[365892274,1749976239833,-460.0,0.00021917,4]
[365892276,1749976239843,-460.0,0.00021917,4]
[365892277,1749976239852,-460.0,0.00021917,4]
[365892279,1749976239862,-460.0,0.00021917,4]
[365892281,1749976239871,-468.21,0.00021917,4]
[365892283,1749976239880,-460.0,0.00021917,4]
[365892285,1749976239890,-460.0,0.00021917,4]
[365892286,1749976239900,-460.0,0.00021917,4]
[365892287,1749976239909,-460.0,0.00021917,4]
[365892289,1749976239919,-460.0,0.00021917,4]
[365892290,1749976239928,-460.0,0.00021917,4]
[365892292,1749976239937,-1420.29,0.00021917,4]
[365892294,1749976239947,-460.0,0.00021917,4]
[365892296,1749976239956,-460.0,0.00021917,4]
[365892299,1749976239966,-460.0,0.00021917,4]
[365892301,1749976239975,-460.0,0.00021917,4]
[365892303,1749976239984,-460.0,0.00021917,4]
[365892305,1749976239994,-1466.86,0.00021917,4]
[365892307,1749976240003,-639.4,0.00021917,4]
[365892309,1749976240012,-460.0,0.00021917,4]
[365892311,1749976240021,-1807.58,0.00021917,4]
[365892313,1749976240030,-247.55833338,0.00021917,4]
[365892315,1749976240039,-460.0,0.00021917,4]
[365892316,1749976240048,-460.0,0.00021917,4]
[365892317,1749976240058,-460.0,0.00021917,4]
[365892318,1749976240067,-460.0,0.00021917,4]
[365892319,1749976240077,-510.19,0.00021917,4]
[365892320,1749976240087,-460.0,0.00021917,4]
[365892321,1749976240096,-460.0,0.00021917,4]
[365892322,1749976240106,-460.0,0.00021917,4]
[365892323,1749976240115,-1288.21,0.00021917,4]
[365892324,1749976240124,-772.11,0.00021917,4]
[365892326,1749976240133,-460.0,0.00021917,4]
[365892327,1749976240142,-1938.98,0.00021917,4]
[365892329,1749976240151,-460.0,0.00021917,4]
[365892331,1749976240160,-460.0,0.00021917,4]
[365892333,1749976240170,-2926.28,0.00021917,4]
[365892335,1749976240180,-629.57,0.00021917,4]
[365892337,1749976240189,-1531.55,0.00021917,4]
[365892339,1749976240198,-553.06,0.00021917,4]
[365892341,1749976240207,-460.0,0.00021917,4]
[365892343,1749976240216,-427.07349668,0.00021917,4]
[365892345,1749976240226,-2009.82,0.00021917,4]
[365892348,1749976240236,-460.0,0.00021917,4]
[365892350,1749976240245,-500.0,0.00021918,2]
[365892351,1749976240254,-500.0,0.00021918,2]
[365892354,1749976240265,-500.0,0.00021918,2]
[365892356,1749976240275,-500.0,0.00021918,2]
[365892358,1749976240285,-500.0,0.00021918,2]
[365892360,1749976240295,-500.0,0.00021918,2]
[365892362,1749976240306,-500.0,0.00021918,2]
[365892364,1749976240317,-500.0,0.00021918,2]
[365892366,1749976240329,-500.0,0.00021918,2]
[365892367,1749976240339,-500.0,0.00021918,2]
[365892370,1749976240350,-500.0,0.00021918,2]
[365892372,1749976240359,-500.0,0.00021918,2]
[365892373,1749976240368,-500.0,0.00021918,2]
[365892375,1749976240377,-500.0,0.00021918,2]
[365892378,1749976240389,-500.0,0.00021918,2]
[365892380,1749976240399,-500.0,0.00021918,2]
[365892382,1749976240408,-500.0,0.00021918,2]
[365892384,1749976240417,-500.0,0.00021918,2]
[365892386,1749976240427,-500.0,0.00021918,2]
[365892388,1749976240436,-500.0,0.00021918,2]
[365892390,1749976240446,-500.0,0.00021918,2]
[365892392,1749976240456,-500.0,0.00021918,2]
[365892394,1749976240465,-500.0,0.00021918,2]
[365892396,1749976240476,-500.0,0.00021918,2]
[365892398,1749976240485,-207.4,0.00021921,2]
[365892400,1749976240495,-500.0,0.00021923,2]
[365892402,1749976240504,-168.0,0.00021931,2]
[365892404,1749976240513,-500.0,0.00021937,2]
[365892406,1749976240522,-500.0,0.00021937,2]
[365892408,1749976240531,-507.21602825,0.00021937,2]
[365892410,1749976240540,-232.44050036,0.00021972,4]
[365892412,1749976240549,-507.59336011,0.00021973,2]
[365892414,1749976240558,-508.13161699,0.00021973,2]
[365892416,1749976240568,-506.98418889,0.00021973,2]
[365892418,1749976240578,-271.25855231,0.00021973,2]
[365892420,1749976240586,-501.78903944,0.00021973,2]
[365892422,1749976240596,-500.0,0.00021973,2]
[365892424,1749976240606,-500.0,0.00021973,2]
[365892426,1749976240615,-500.0,0.00021973,2]
[365892428,1749976240625,-500.0,0.00021973,2]
[365892430,1749976240635,-500.0,0.00021973,2]
[365892432,1749976240644,-500.0,0.00021973,2]
[365892434,1749976240653,-500.0,0.00021973,2]
[365892436,1749976240662,-500.0,0.00021973,2]
[365892438,1749976240671,-213.32089821,0.00021986,2]
[365892440,1749976240680,-12535.62630729,0.00021986,2]
[365892442,1749976240690,-12612.59688001,0.0002199,2]
[365892444,1749976240699,-395.20413537,0.00022,2]
[365892446,1749976240708,-65601.86875996,0.00022,2]
[365892448,1749976240717,-835.55256958,0.00022015,2]
[365892450,1749976240727,-424.47602138,0.00022015,2]
[365892452,1749976240736,-229.86375354,0.00022015,2]
[365892454,1749976240745,-160.0,0.00022015,2]
[365892456,1749976240755,-845.25843836,0.00022015,2]
[365892458,1749976240764,-160.0,0.00022015,2]
[365892460,1749976240773,-160.0,0.00022015,2]
[365892462,1749976240782,-160.0,0.00022015,2]
[365892464,1749976240792,-168.0,0.00022119,2]
[365892466,1749976240801,-232.49433046,0.00022191,4]
[365892468,1749976240811,-528.37,0.00022191,4]
[365892470,1749976240821,-460.0,0.00022191,4]
[365892472,1749976240830,-460.0,0.00022191,4]
[365892474,1749976240839,-613.83,0.00022191,4]
[365892476,1749976240848,-459.80067473,0.00022191,4]
[365892478,1749976240857,-474.07,0.00022191,4]
[365892480,1749976240867,-322.56125188,0.00022191,4]
[365892482,1749976240876,-479.87,0.00022191,2]
[365892484,1749976240885,-460.0,0.00022191,4]
[365892486,1749976240895,-460.0,0.00022191,4]
[365892488,1749976240904,-3296.49,0.00022191,4]
[365892490,1749976240913,-460.0,0.00022191,4]
[365892492,1749976240922,-537.78,0.00022191,4]
[365892494,1749976240931,-460.0,0.00022191,4]
[365892496,1749976240940,-703.97,0.00022191,4]
[365892498,1749976240950,-460.0,0.00022191,4]
[365892500,1749976240960,-1995.69,0.00022191,4]
[365892502,1749976240969,-2740.44,0.00022191,4]
[365892504,1749976240978,-1301.91,0.00022191,4]
[365892506,1749976240987,-571.14,0.00022191,4]
[365892508,1749976241000,-460.0,0.00022191,4]
[365892510,1749976241009,-430.0,0.00022191,4]
[365892512,1749976241019,-2652.24,0.00022191,4]
[365892514,1749976241028,-460.0,0.00022191,4]
[365892516,1749976241037,-1119.44,0.00022191,4]
[365892518,1749976241046,-1273.67,0.00022191,4]
[365892520,1749976241055,-460.0,0.00022191,4]
[365892522,1749976241063,-1087.65,0.00022191,4]
[365892524,1749976241072,-460.0,0.00022191,4]
[365892526,1749976241082,-759.2,0.00022191,4]
[365892528,1749976241092,-460.0,0.00022191,4]
[365892530,1749976241102,-460.0,0.00022191,4]
[365892532,1749976241111,-460.0,0.00022191,4]
[365892534,1749976241120,-468.21,0.00022191,4]
[365892536,1749976241129,-460.0,0.00022191,4]
[365892538,1749976241139,-460.0,0.00022191,4]
[365892540,1749976241149,-460.0,0.00022191,4]
[365892542,1749976241159,-460.0,0.00022191,4]
[365892544,1749976241168,-460.0,0.00022191,4]
[365892546,1749976241178,-460.0,0.00022191,4]
[365892548,1749976241187,-1420.29,0.00022191,4]
[365892550,1749976241196,-460.0,0.00022191,4]
[365892552,1749976241205,-460.0,0.00022191,4]
[365892554,1749976241214,-460.0,0.00022191,4]
[365892556,1749976241223,-460.0,0.00022191,4]
[365892558,1749976241231,-460.0,0.00022191,4]
[365892560,1749976241240,-1466.86,0.00022191,4]
[365892561,1749976241252,-639.4,0.00022191,4]
[365892563,1749976241264,-460.0,0.00022191,4]
[365892565,1749976241273,-1807.58,0.00022191,4]
[365892567,1749976241282,-460.0,0.00022191,4]
[365892569,1749976241291,-460.0,0.00022191,4]
[365892571,1749976241301,-460.0,0.00022191,4]
[365892573,1749976241312,-510.19,0.00022191,4]
[365892575,1749976241321,-460.0,0.00022191,4]
[365892577,1749976241330,-460.0,0.00022191,4]
[365892579,1749976241339,-1288.21,0.00022191,4]
[365892581,1749976241348,-772.11,0.00022191,4]
[365892583,1749976241357,-460.0,0.00022191,4]
[365892585,1749976241366,-1938.98,0.00022191,4]
[365892587,1749976241375,-460.0,0.00022191,4]
[365892589,1749976241384,-460.0,0.00022191,4]
[365892592,1749976241395,-629.57,0.00022191,4]
[365892593,1749976241404,-2926.28,0.00022191,4]
[365892596,1749976241414,-1531.55,0.00022191,4]
[365892598,1749976241423,-553.06,0.00022191,4]
[365892600,1749976241432,-460.0,0.00022191,4]
[365892602,1749976241441,-2009.82,0.00022191,4]
[365892604,1749976241451,-460.0,0.00022191,4]
[365892606,1749976241461,-2000.0,0.00022216,2]
[365892608,1749976241471,-1201.12475488,0.00022287,2]
[365892610,1749976241481,-420.0,0.0002232,2]
[365892612,1749976241490,-231.0,0.0002232,2]
[365892613,1749976241499,-420.0,0.00022323,2]
[365892614,1749976241508,-168.0,0.00022333,2]
[365892615,1749976241517,-189.94184358,0.00022354,2]
[365892617,1749976241526,-500.0,0.00022356,2]
[365892619,1749976241537,-1424.41,0.000224,7]
[365892622,1749976241547,-238.0,0.00022426,2]
[365892624,1749976241557,-506.0622837,0.00022461,2]
[365892626,1749976241566,-500.0,0.00022461,2]
[365892628,1749976241576,-528.37,0.00022465,4]
[365892630,1749976241585,-460.0,0.00022465,4]
[365892632,1749976241594,-613.83,0.00022465,4]
[365892634,1749976241603,-474.07,0.00022465,4]
[365892636,1749976241611,-479.87,0.00022465,2]
[365892637,1749976241620,-460.0,0.00022465,4]
[365892640,1749976241630,-460.0,0.00022465,4]
[365892641,1749976241641,-3296.49,0.00022465,4]
[365892643,1749976241650,-460.0,0.00022465,4]
[365892645,1749976241659,-537.78,0.00022465,4]
[365892646,1749976241668,-460.0,0.00022465,4]
[365892648,1749976241678,-703.97,0.00022465,4]
[365892650,1749976241687,-460.0,0.00022465,4]
[365892652,1749976241696,-1995.69,0.00022465,4]
[365892654,1749976241706,-2740.44,0.00022465,4]
[365892656,1749976241715,-1301.91,0.00022465,4]
[365892657,1749976241724,-571.14,0.00022465,4]
[365892659,1749976241733,-460.0,0.00022465,4]
[365892661,1749976241744,-2652.24,0.00022465,4]
[365892663,1749976241753,-1119.44,0.00022465,4]
[365892665,1749976241762,-1273.67,0.00022465,4]
[365892668,1749976241772,-460.0,0.00022465,4]
[365892670,1749976241781,-1087.65,0.00022465,4]
[365892672,1749976241790,-460.0,0.00022465,4]
[365892674,1749976241799,-759.2,0.00022465,4]
[365892676,1749976241808,-460.0,0.00022465,4]
[365892678,1749976241818,-468.21,0.00022465,4]
[365892680,1749976241828,-460.0,0.00022465,4]
[365892682,1749976241837,-352.89729008,0.00022465,4]
[365892684,1749976241846,-460.0,0.00022465,4]
[365892686,1749976241855,-460.0,0.00022465,4]
[365892688,1749976241865,-340.66,0.00022465,4]
[365892690,1749976241874,-460.0,0.00022465,4]
[365892692,1749976241884,-1420.29,0.00022465,4]
[365892693,1749976241894,-460.0,0.00022465,4]
[365892695,1749976241904,-460.0,0.00022465,4]
[365892697,1749976241913,-460.0,0.00022465,4]
[365892699,1749976241922,-460.0,0.00022465,4]
[365892701,1749976241932,-460.0,0.00022465,4]
[365892702,1749976241941,-1466.86,0.00022465,4]
[365892703,1749976241950,-639.4,0.00022465,4]
[365892704,1749976241959,-460.0,0.00022465,4]
[365892705,1749976241968,-1807.58,0.00022465,4]
[365892706,1749976241977,-460.0,0.00022465,4]
[365892707,1749976241986,-460.0,0.00022465,4]
[365892708,1749976241995,-460.0,0.00022465,4]
[365892709,1749976242005,-510.19,0.00022465,4]
[365892710,1749976242014,-460.0,0.00022465,4]
[365892711,1749976242023,-460.0,0.00022465,4]
[365892712,1749976242033,-1288.21,0.00022465,4]
[365892713,1749976242045,-772.11,0.00022465,4]
[365892714,1749976242054,-460.0,0.00022465,4]
[365892715,1749976242064,-1938.98,0.00022465,4]
[365892716,1749976242074,-460.0,0.00022465,4]
[365892717,1749976242089,-460.0,0.00022465,4]
[365892718,1749976242099,-629.57,0.00022465,4]
[365892719,1749976242109,-2926.28,0.00022465,4]
[365892720,1749976242119,-1531.55,0.00022465,4]
[365892721,1749976242131,-553.06,0.00022465,4]
[365892722,1749976242140,-2009.82,0.00022465,4]
[365892723,1749976242150,-1000.0,0.00022485,2]
[365892724,1749976242159,-1001.65890684,0.00022521,2]
[365892725,1749976242168,-500.0,0.00022521,2]
[365892726,1749976242177,-1000.0,0.00022521,2]
[365892727,1749976242186,-500.0,0.00022521,2]
[365892728,1749976242195,-1000.0,0.00022521,2]
[365892729,1749976242204,-500.0,0.00022521,2]
[365892730,1749976242213,-500.0,0.00022521,2]
[365892731,1749976242222,-1000.0,0.00022521,2]
[365892732,1749976242231,-546.44,0.000226,7]
[365892733,1749976242240,-158.66118947,0.00022685,2]
[365892734,1749976242249,-160.22425139,0.00022712,2]
[365892735,1749976242259,-151.0,0.00022739,7]
[365892736,1749976242268,-528.37,0.00022739,4]
[365892737,1749976242277,-460.0,0.00022739,4]
[365892738,1749976242286,-613.83,0.00022739,4]
[365892739,1749976242295,-474.07,0.00022739,4]
[365892740,1749976242305,-479.87,0.00022739,2]
[365892741,1749976242316,-152.184814,0.00022739,4]
[365892742,1749976242325,-460.0,0.00022739,4]
[365892743,1749976242334,-3296.49,0.00022739,4]
[365892744,1749976242343,-460.0,0.00022739,4]
[365892745,1749976242353,-537.78,0.00022739,4]
[365892746,1749976242362,-703.97,0.00022739,4]
[365892747,1749976242372,-460.0,0.00022739,4]
[365892748,1749976242382,-1995.69,0.00022739,4]
[365892750,1749976242391,-2740.44,0.00022739,4]
[365892751,1749976242400,-1301.91,0.00022739,4]
[365892752,1749976242409,-571.14,0.00022739,4]
[365892753,1749976242418,-2652.24,0.00022739,4]
[365892754,1749976242427,-1119.44,0.00022739,4]
[365892755,1749976242436,-1273.67,0.00022739,4]
[365892756,1749976242445,-460.0,0.00022739,4]
[365892757,1749976242454,-1087.65,0.00022739,4]
[365892758,1749976242463,-460.0,0.00022739,4]
[365892759,1749976242473,-759.2,0.00022739,4]
[365892760,1749976242483,-460.0,0.00022739,4]
[365892761,1749976242492,-468.21,0.00022739,4]
[365892762,1749976242501,-460.0,0.00022739,4]
[365892763,1749976242510,-460.0,0.00022739,4]
[365892765,1749976242520,-460.0,0.00022739,4]
[365892767,1749976242529,-460.0,0.00022739,4]
[365892769,1749976242539,-1420.29,0.00022739,4]
[365892771,1749976242548,-460.0,0.00022739,4]
[365892773,1749976242557,-460.0,0.00022739,4]
[365892775,1749976242567,-460.0,0.00022739,4]
[365892776,1749976242577,-1466.86,0.00022739,4]
[365892777,1749976242587,-639.4,0.00022739,4]
[365892778,1749976242596,-460.0,0.00022739,4]
[365892779,1749976242605,-1807.58,0.00022739,4]
[365892780,1749976242615,-460.0,0.00022739,4]
[365892781,1749976242624,-460.0,0.00022739,4]
[365892782,1749976242634,-510.19,0.00022739,4]
[365892783,1749976242644,-460.0,0.00022739,4]
[365892784,1749976242653,-460.0,0.00022739,4]
[365892785,1749976242663,-1288.21,0.00022739,4]
[365892786,1749976242672,-772.11,0.00022739,4]
[365892787,1749976242681,-1938.98,0.00022739,4]
[365892788,1749976242690,-460.0,0.00022739,4]
[365892789,1749976242700,-460.0,0.00022739,4]
[365892790,1749976242709,-629.57,0.00022739,4]
[365892791,1749976242718,-2926.28,0.00022739,4]
[365892792,1749976242728,-1531.55,0.00022739,4]
[365892793,1749976242737,-553.06,0.00022739,4]
[365892794,1749976242747,-151.0,0.00022739,7]
[365892795,1749976242873,-2009.82,0.00022739,4]
[365892796,1749976242883,-151.0,0.00022759,7]
[365892797,1749976242892,-151.0,0.00022759,7]
[365892799,1749976242903,-2500.0,0.00022764,2]
[365892801,1749976242912,-10644.74551458,0.0002287,2]
[365892803,1749976242921,-500.0,0.00022882,2]
[365892805,1749976242931,-193.06524878,0.00022931,2]
[365892807,1749976242941,-601.57766368,0.00022964,2]
[365892809,1749976242950,-500.0,0.00022973,2]
[365892812,1749976242959,-500.0,0.00022973,2]
[365892815,1749976242969,-519.043125,0.00022973,2]
[365892817,1749976242979,-500.0,0.00022973,2]
[365892818,1749976242988,-500.0,0.00022973,2]
[365892819,1749976242997,-500.0,0.00022973,2]
[365892820,1749976243007,-500.0,0.00022973,2]
[365892821,1749976243016,-500.0,0.00022973,2]
[365892822,1749976243026,-600.0,0.00022973,2]
[365892823,1749976243035,-500.0,0.00022973,2]